[Event "9th RTU Open 2019"]
[Site "Riga"]
[Date "2019.08.11"]
[Round "9.8"]
[White "Zanan, Evgeny"]
[Black "Michalik, Peter"]
[Result "1/2-1/2"]
[ECO "D02"]
[WhiteElo "2505"]
[BlackElo "2573"]
[Annotator "ChessBase"]
[PlyCount "57"]
[EventDate "2019.08.05"]
[EventType "swiss"]
[EventCountry "LAT"]
[SourceTitle "playchess.com"]
[Source "ChessBase"]
[SourceQuality "1"]
[TimeControl "5400+30"]

1. d4 {[%emt 0:01:36]} d5 {[%emt 0:00:48]} 2. Nf3 {[%emt 0:01:03]} Nf6 {[%emt 0:00:09]} 3. Bf4 {[%emt 0:00:13]} e6 {[%emt 0:01:50]} 4. e3 {[%emt 0:00:07]} c5 {[%emt 0:00:36]} 5. Nbd2 {[%emt 0:13:51]} Bd6 {[%emt 0:00:52]} 6. Bg3 {[%emt 0:00:20]} O-O {[%emt 0:00:49]} 7. c3 {[%emt 0:00:17]} Qc7 {[%emt 0:01:14]} 8. dxc5 {[%emt 0:06:02]} Qxc5 {[%emt 0:01:05]} 9. Bd3 {[%emt 0:00:06]} Nbd7 {[%emt 0:02:58]} 10. e4 {[%emt 0:02:59]} Bxg3 {[%emt 0:21:51]} 11. hxg3 {[%emt 0:00:10]} dxe4 {[%emt 0:00:04]} 12. Bxe4 {[%emt 0:05:24]} Rd8 {[%emt 0:10:36]} 13. Qe2 {[%emt 0:03:41]} Nf8 {[%emt 0:09:04]} 14. Nb3 {[%emt 0:14:57]} Qb6 {[%emt 0:02:10]} 15. O-O {[%emt 0:06:00]} Nxe4 {[%emt 0:02:23]} 16. Qxe4 {[%emt 0:01:12]} Bd7 {[%emt 0:00:05]} 17. Ne5 {[%emt 0:01:53]} Be8 {[%emt 0:04:56]} 18. Rfd1 {[%emt 0:00:35]} f6 {[%emt 0:00:31]} 19. Nc4 {[%emt 0:00:15]} Qc7 {[%emt 0:00:19]} 20. Ne3 {[%emt 0:00:23]} Bg6 {[%emt 0:06:57]} 21. Qb4 {[%emt 0:02:17]} Bf7 {[%emt 0:01:17]} 22. Na5 {[%emt 0:05:19]} b6 {[%emt 0:04:11]} 23. Nac4 {[%emt 0:00:59]} Rd7 {[%emt 0:03:22]} 24. Rxd7 {[%emt 0:01:54]} Nxd7 {[%emt 0:00:04]} 25. Rd1 {[%emt 0:00:57]} Nc5 {[%emt 0:00:11]} 26. Nd6 {[%emt 0:07:57]} Rd8 {[%emt 0:00:19]} 27. Nxf7 {[%emt 0:00:13]} Rxd1+ {[%emt 0:00:11]} 28. Nxd1 {[%emt 0:00:05]} Kxf7 {[%emt 0:00:24]} 29. Qd4 {[%emt 0:01:27]} 1/2-1/2

[Event "9th RTU Open 2019"]
[Site "Riga"]
[Date "2019.08.11"]
[Round "9.9"]
[White "Wagner, Dennis"]
[Black "Grigorov, Grigor"]
[Result "1/2-1/2"]
[ECO "E04"]
[WhiteElo "2579"]
[BlackElo "2501"]
[Annotator "ChessBase"]
[PlyCount "90"]
[EventDate "2019.08.05"]
[EventType "swiss"]
[EventCountry "LAT"]
[SourceTitle "playchess.com"]
[Source "ChessBase"]
[SourceQuality "1"]
[TimeControl "5400+30"]

1. d4 {[%emt 0:00:00]} Nf6 {[%emt 0:00:00]} 2. c4 {[%emt 0:00:00]} e6 {[%emt 0:00:00]} 3. g3 {[%emt 0:00:00]} d5 {[%emt 0:00:00]} 4. Bg2 {[%emt 0:00:00]} dxc4 {[%emt 0:00:11]} 5. Nf3 {[%emt 0:00:00]} Bd7 {[%emt 0:00:16]} 6. Nbd2 {[%emt 0:00:35]} c5 {[%emt 0:03:21]} 7. Nxc4 {[%emt 0:05:53]} Bc6 {[%emt 0:00:42]} 8. O-O {[%emt 0:00:50]} cxd4 {[%emt 0:14:17]} 9. Qxd4 {[%emt 0:00:23]} Qxd4 {[%emt 0:08:25]} 10. Nxd4 {[%emt 0:00:03]} Bxg2 {[%emt 0:00:07]} 11. Kxg2 {[%emt 0:00:06]} Nc6 {[%emt 0:18:31]} 12. Nxc6 {[%emt 0:07:39]} bxc6 {[%emt 0:00:05]} 13. Bd2 {[%emt 0:18:00]} Nd7 {[%emt 0:02:12]} 14. Rac1 {[%emt 0:01:16]} c5 {[%emt 0:01:06]} 15. Bf4 {[%emt 0:08:42]} Be7 {[%emt 0:09:19]} 16. Nd6+ {[%emt 0:07:23]} Bxd6 {[%emt 0:01:46]} 17. Bxd6 {[%emt 0:00:02]} Rc8 {[%emt 0:00:09]} 18. Rc4 {[%emt 0:11:22]} Rc6 {[%emt 0:00:25]} 19. Rd1 {[%emt 0:00:05]} f6 {[%emt 0:00:23]} 20. b4 {[%emt 0:01:30]} Kf7 {[%emt 0:00:14]} 21. Bxc5 {[%emt 0:15:57]} Nxc5 {[%emt 0:00:09]} 22. Rxc5 {[%emt 0:00:05]} Rxc5 {[%emt 0:00:16]} 23. bxc5 {[%emt 0:00:04]} Rc8 {[%emt 0:00:28]} 24. Rd7+ {[%emt 0:00:27]} Kg6 {[%emt 0:00:08]} 25. Rxa7 {[%emt 0:00:05]} Rxc5 {[%emt 0:00:05]} 26. g4 {[%emt 0:05:54]} h5 {[%emt 0:02:41]} 27. h3 {[%emt 0:00:21]} hxg4 {[%emt 0:00:25]} 28. hxg4 {[%emt 0:00:03]} Rc2 {[%emt 0:01:46]} 29. Kf3 {[%emt 0:03:40]} e5 {[%emt 0:02:07]} 30. a4 {[%emt 0:00:51]} Ra2 {[%emt 0:02:48]} 31. a5 {[%emt 0:00:29]} Kh6 {[%emt 0:02:00]} 32. a6 {[%emt 0:00:15]} g6 {[%emt 0:00:37]} 33. Ra8 {[%emt 0:02:21]} Kg5 {[%emt 0:00:18]} 34. e3 {[%emt 0:06:40]} Ra1 {[%emt 0:03:30]} 35. Kg3 {[%emt 0:05:43]} Rg1+ {[%emt 0:00:21]} 36. Kf3 {[%emt 0:00:34]} Rxg4 {[%emt 0:01:36]} 37. e4 {[%emt 0:00:25]} Rg1 {[%emt 0:00:11]} 38. Rc8 {[%emt 0:00:35]} Ra1 {[%emt 0:00:07]} 39. Rc6 {[%emt 0:00:02]} Ra3+ {[%emt 0:00:21]} 40. Ke2 {[%emt 0:00:10]} f5 {[%emt 0:00:12]} 41. exf5 {[%emt 0:00:45]} gxf5 {[%emt 0:00:05]} 42. Kf1 {[%emt 0:01:03]} Kf4 {[%emt 0:00:23]} 43. Rh6 {[%emt 0:00:27]} e4 {[%emt 0:00:18]} 44. Kg2 {[%emt 0:00:07]} Ra2 {[%emt 0:00:10]} 45. Re6 {[%emt 0:00:44]} e3 {[%emt 0:01:24]} 1/2-1/2

[Event "9th RTU Open 2019"]
[Site "Riga"]
[Date "2019.08.11"]
[Round "9.11"]
[White "Smirin, Ilia"]
[Black "Usmanov, Vasily"]
[Result "1-0"]
[ECO "C43"]
[WhiteElo "2594"]
[BlackElo "2443"]
[Annotator "ChessBase"]
[PlyCount "63"]
[EventDate "2019.08.05"]
[EventType "swiss"]
[EventCountry "LAT"]
[SourceTitle "playchess.com"]
[Source "ChessBase"]
[SourceQuality "1"]
[TimeControl "5400+30"]

1. e4 {[%emt 0:10:02]} e5 {[%emt 0:00:00]} 2. Nf3 {[%emt 0:00:15]} Nf6 {[%emt 0:00:00]} 3. d4 {[%emt 0:00:34]} Nxe4 {[%emt 0:00:00]} 4. dxe5 {[%emt 0:00:03]} d5 {[%emt 0:00:07]} 5. Nbd2 {[%emt 0:00:09]} Qd7 {[%emt 0:00:07]} 6. c3 {[%emt 0:05:52]} Nc6 {[%emt 0:00:26]} 7. Bd3 {[%emt 0:01:01]} Nc5 {[%emt 0:05:56]} 8. Bb1 {[%emt 0:03:42]} Qg4 {[%emt 0:22:14]} 9. O-O {[%emt 0:07:23]} Be6 {[%emt 0:00:55]} 10. Nb3 {[%emt 0:14:56]} Nd7 {[%emt 0:19:56]} 11. h3 {[%emt 0:07:52]} Qh5 {[%emt 0:00:03]} 12. Bf4 {[%emt 0:00:12]} Be7 {[%emt 0:08:05]} 13. Re1 {[%emt 0:01:18]} O-O {[%emt 0:07:59]} 14. Re3 {[%emt 0:07:31]} Rae8 {[%emt 0:07:07]} 15. Nbd4 {[%emt 0:10:54]} Nxd4 {[%emt 0:02:12]} 16. cxd4 {[%emt 0:00:56]} c5 {[%emt 0:01:46]} 17. Qd2 {[%emt 0:05:07]} cxd4 {[%emt 0:03:11]} 18. Nxd4 {[%emt 0:00:49]} Bg5 {[%emt 0:00:01]} 19. Bxg5 {[%emt 0:02:27]} Qxg5 {[%emt 0:00:03]} 20. Nf3 {[%emt 0:00:13]} Qf4 {[%emt 0:03:16]} 21. Bc2 {[%emt 0:00:39]} f6 {[%emt 0:02:25]} 22. exf6 {[%emt 0:00:51]} Nxf6 {[%emt 0:00:36]} 23. Rae1 {[%emt 0:00:52]} Qd6 {[%emt 0:01:59]} 24. Qd4 {[%emt 0:02:39]} b6 {[%emt 0:01:58]} 25. Ne5 {[%emt 0:02:59]} Qc5 {[%emt 0:00:04]} 26. Qd1 {[%emt 0:01:44]} Ne4 {[%emt 0:05:58]} 27. f3 {[%emt 0:00:30]} Nd6 {[%emt 0:00:43]} 28. Kh1 {[%emt 0:01:17]} Bf5 {[%emt 0:00:32]} 29. Bb3 {[%emt 0:00:42]} Nc4 {[%emt 0:03:10]} 30. Nxc4 {[%emt 0:00:27]} dxc4 {[%emt 0:00:25]} 31. Rxe8 {[%emt 0:00:15]} cxb3 {[%emt 0:00:09]} 32. Qxb3+ {[%emt 0:00:10]} 1-0

[Event "9th RTU Open 2019"]
[Site "Riga"]
[Date "2019.08.11"]
[Round "9.12"]
[White "Theodorou, Nikolas"]
[Black "Haria, Ravi"]
[Result "1/2-1/2"]
[ECO "E01"]
[WhiteElo "2543"]
[BlackElo "2430"]
[Annotator "ChessBase"]
[PlyCount "67"]
[EventDate "2019.08.05"]
[EventType "swiss"]
[EventCountry "LAT"]
[SourceTitle "playchess.com"]
[Source "ChessBase"]
[SourceQuality "1"]
[TimeControl "5400+30"]

1. d4 {[%emt 0:07:39]} e6 {[%emt 0:00:00]} 2. c4 {[%emt 0:00:20]} d5 {[%emt 0:00:01]} 3. Nf3 {[%emt 0:00:06]} Nf6 {[%emt 0:00:09]} 4. g3 {[%emt 0:00:04]} Bb4+ {[%emt 0:00:28]} 5. Bd2 {[%emt 0:00:22]} Bd6 {[%emt 0:00:30]} 6. Bg2 {[%emt 0:00:07]} c6 {[%emt 0:01:16]} 7. O-O {[%emt 0:00:12]} O-O {[%emt 0:00:34]} 8. Bc3 {[%emt 0:00:08]} dxc4 {[%emt 0:03:31]} 9. a4 {[%emt 0:00:28]} b6 {[%emt 0:04:11]} 10. Nbd2 {[%emt 0:24:23]} Ba6 {[%emt 0:08:14]} 11. e4 {[%emt 0:00:10]} Be7 {[%emt 0:00:58]} 12. Re1 {[%emt 0:01:40]} Nbd7 {[%emt 0:07:26]} 13. Bf1 {[%emt 0:14:16]} c5 {[%emt 0:03:01]} 14. Bxc4 {[%emt 0:00:05]} Bxc4 {[%emt 0:01:31]} 15. Nxc4 {[%emt 0:00:06]} cxd4 {[%emt 0:00:42]} 16. Bxd4 {[%emt 0:10:13]} Nc5 {[%emt 0:11:05]} 17. Bxf6 {[%emt 0:04:15]} Qxd1 {[%emt 0:04:06]} 18. Rexd1 {[%emt 0:03:24]} gxf6 {[%emt 0:00:55]} 19. e5 {[%emt 0:03:20]} Rfd8 {[%emt 0:13:04]} 20. Kg2 {[%emt 0:01:11]} Rac8 {[%emt 0:02:21]} 21. Rxd8+ {[%emt 0:05:16]} Rxd8 {[%emt 0:00:35]} 22. b4 {[%emt 0:00:38]} Nd3 {[%emt 0:05:41]} 23. b5 {[%emt 0:03:24]} fxe5 {[%emt 0:02:06]} 24. Ncxe5 {[%emt 0:00:49]} Nxe5 {[%emt 0:00:31]} 25. Nxe5 {[%emt 0:00:04]} Rd2 {[%emt 0:00:12]} 26. Nc6 {[%emt 0:02:10]} Bc5 {[%emt 0:00:52]} 27. Nxa7 {[%emt 0:00:18]} Rxf2+ {[%emt 0:01:32]} 28. Kh3 {[%emt 0:00:39]} Rc2 {[%emt 0:05:06]} 29. Nc6 {[%emt 0:00:56]} Rc4 {[%emt 0:05:50]} 30. Ra2 {[%emt 0:01:51]} Kg7 {[%emt 0:01:03]} 31. Ne5 {[%emt 0:02:30]} Rd4 {[%emt 0:00:35]} 32. Nc6 {[%emt 0:00:07]} Rc4 {[%emt 0:00:13]} 33. Ne5 {[%emt 0:01:27]} Rd4 {[%emt 0:00:21]} 34. Nc6 {[%emt 0:00:55]} 1/2-1/2

[Event "9th RTU Open 2019"]
[Site "Riga"]
[Date "2019.08.11"]
[Round "9.14"]
[White "Korchmar, Vasiliy"]
[Black "Deepan Chakkravarthy J."]
[Result "0-1"]
[ECO "D80"]
[WhiteElo "2424"]
[BlackElo "2532"]
[Annotator "ChessBase"]
[PlyCount "98"]
[EventDate "2019.08.05"]
[EventType "swiss"]
[EventCountry "LAT"]
[SourceTitle "playchess.com"]
[Source "ChessBase"]
[SourceQuality "1"]
[TimeControl "5400+30"]

1. d4 {[%emt 0:00:00]} Nf6 {[%emt 0:00:52]} 2. c4 {[%emt 0:00:00]} g6 {[%emt 0:00:02]} 3. Nc3 {[%emt 0:00:00]} d5 {[%emt 0:00:04]} 4. Bg5 {[%emt 0:00:13]} Ne4 {[%emt 0:00:11]} 5. Bh4 {[%emt 0:00:05]} Nxc3 {[%emt 0:00:03]} 6. bxc3 {[%emt 0:00:07]} dxc4 {[%emt 0:00:03]} 7. e3 {[%emt 0:00:06]} Be6 {[%emt 0:00:06]} 8. Nf3 {[%emt 0:00:26]} Nd7 {[%emt 0:00:06]} 9. d5 {[%emt 0:00:10]} Bg4 {[%emt 0:09:53]} 10. Qd4 {[%emt 0:00:25]} Bxf3 {[%emt 0:00:04]} 11. gxf3 {[%emt 0:18:23]} Nf6 {[%emt 0:00:28]} 12. Bxc4 {[%emt 0:08:44]} Bg7 {[%emt 0:00:05]} 13. Bb5+ {[%emt 0:04:23]} Kf8 {[%emt 0:00:06]} 14. Rd1 {[%emt 0:00:39]} Nd7 {[%emt 0:06:42]} 15. Qd2 {[%emt 0:01:10]} Bf6 {[%emt 0:09:11]} 16. Bg3 {[%emt 0:00:10]} h5 {[%emt 0:00:25]} 17. h4 {[%emt 0:03:36]} Nc5 {[%emt 0:22:18]} 18. Qc2 {[%emt 0:12:53]} c6 {[%emt 0:05:54]} 19. dxc6 {[%emt 0:01:14]} Qb6 {[%emt 0:00:14]} 20. cxb7 {[%emt 0:01:34]} Qxb7 {[%emt 0:00:13]} 21. Be2 {[%emt 0:00:29]} Kg7 {[%emt 0:02:24]} 22. O-O {[%emt 0:02:20]} Rac8 {[%emt 0:00:15]} 23. Kg2 {[%emt 0:07:11]} e5 {[%emt 0:09:17]} 24. Rb1 {[%emt 0:05:51]} Qe7 {[%emt 0:00:32]} 25. Rb4 {[%emt 0:00:23]} a5 {[%emt 0:00:58]} 26. Rc4 {[%emt 0:00:51]} Nb7 {[%emt 0:10:33]} 27. Qa4 {[%emt 0:01:26]} Nd6 {[%emt 0:01:01]} 28. Rxc8 {[%emt 0:00:49]} Rxc8 {[%emt 0:00:04]} 29. Qxa5 {[%emt 0:02:12]} Nf5 {[%emt 0:00:43]} 30. e4 {[%emt 0:09:36]} Nxh4+ {[%emt 0:01:41]} 31. Kh2 {[%emt 0:00:02]} Rb8 {[%emt 0:00:22]} 32. a4 {[%emt 0:04:48]} Rb2 {[%emt 0:00:34]} 33. Bxh4 {[%emt 0:06:24]} Bxh4 {[%emt 0:04:12]} 34. Qa6 {[%emt 0:00:05]} Qg5 {[%emt 0:08:46]} 35. Qd3 {[%emt 0:02:26]} Ra2 {[%emt 0:03:18]} 36. Qd1 {[%emt 0:04:30]} Rd2 {[%emt 0:02:03]} 37. Qe1 {[%emt 0:00:04]} Qf4+ {[%emt 0:00:06]} 38. Kh3 {[%emt 0:01:17]} Bd8 {[%emt 0:00:28]} 39. Bd1 {[%emt 0:02:29]} Bb6 {[%emt 0:01:08]} 40. c4 {[%emt 0:00:07]} Ra2 {[%emt 0:03:48]} 41. Kg2 {[%emt 0:02:19]} g5 {[%emt 0:00:29]} 42. Qb4 {[%emt 0:00:25]} Bd4 {[%emt 0:00:16]} 43. Qe1 {[%emt 0:00:36]} g4 {[%emt 0:00:21]} 44. fxg4 {[%emt 0:00:28]} hxg4 {[%emt 0:01:00]} 45. a5 {[%emt 0:00:26]} g3 {[%emt 0:00:09]} 46. Bf3 {[%emt 0:00:11]} gxf2 {[%emt 0:00:36]} 47. Qb4 {[%emt 0:00:42]} Rb2 {[%emt 0:00:31]} 48. Qa4 {[%emt 0:00:17]} Qg5+ {[%emt 0:00:11]} 49. Kh3 {[%emt 0:00:08]} Rb8 {[%emt 0:00:06]} 0-1

[Event "9th RTU Open 2019"]
[Site "Riga"]
[Date "2019.08.11"]
[Round "9.16"]
[White "Ioannidis, Evgenios"]
[Black "Stany, G.A."]
[Result "1-0"]
[ECO "D77"]
[WhiteElo "2378"]
[BlackElo "2525"]
[Annotator "ChessBase"]
[PlyCount "105"]
[EventDate "2019.08.05"]
[EventType "swiss"]
[EventCountry "LAT"]
[SourceTitle "playchess.com"]
[Source "ChessBase"]
[SourceQuality "1"]
[TimeControl "5400+30"]

1. Nf3 {[%emt 0:00:01]} g6 {[%emt 0:01:30]} 2. g3 {[%emt 0:01:04]} Bg7 {[%emt 0:00:05]} 3. d4 {[%emt 0:00:29]} d5 {[%emt 0:04:23]} 4. Bg2 {[%emt 0:00:38]} Nf6 {[%emt 0:00:06]} 5. c4 {[%emt 0:00:39]} dxc4 {[%emt 0:02:31]} 6. Na3 {[%emt 0:00:38]} c3 {[%emt 0:00:22]} 7. bxc3 {[%emt 0:00:07]} O-O {[%emt 0:00:06]} 8. O-O {[%emt 0:00:19]} c5 {[%emt 0:00:04]} 9. Ne5 {[%emt 0:01:03]} Nc6 {[%emt 0:04:01]} 10. Nxc6 {[%emt 0:00:45]} bxc6 {[%emt 0:00:05]} 11. Nc4 {[%emt 0:00:18]} Nd5 {[%emt 0:01:51]} 12. Bd2 {[%emt 0:00:41]} Ba6 {[%emt 0:15:04]} 13. Ne5 {[%emt 0:00:27]} Qc7 {[%emt 0:16:28]} 14. Re1 {[%emt 0:08:48]} Rfd8 {[%emt 0:16:50]} 15. Qa4 {[%emt 0:20:36]} Bb5 {[%emt 0:04:49]} 16. Qc2 {[%emt 0:26:32]} Nxc3 {[%emt 0:03:45]} 17. Bf4 {[%emt 0:03:51]} Qa5 {[%emt 0:18:02]} 18. a4 {[%emt 0:01:43]} Bxa4 {[%emt 0:03:41]} 19. Nxc6 {[%emt 0:01:16]} Bxc2 {[%emt 0:00:32]} 20. Rxa5 {[%emt 0:00:06]} cxd4 {[%emt 0:00:36]} 21. Nxd8 {[%emt 0:00:18]} Rxd8 {[%emt 0:00:05]} 22. Rxa7 {[%emt 0:00:27]} e5 {[%emt 0:00:59]} 23. Bg5 {[%emt 0:01:07]} Rb8 {[%emt 0:01:10]} 24. Bd2 {[%emt 0:05:54]} e4 {[%emt 0:00:55]} 25. Rc7 {[%emt 0:00:44]} f5 {[%emt 0:01:02]} 26. e3 {[%emt 0:01:00]} Bd3 {[%emt 0:00:08]} 27. exd4 {[%emt 0:01:55]} Nb5 {[%emt 0:01:25]} 28. Rd7 {[%emt 0:08:32]} Nxd4 {[%emt 0:00:04]} 29. Be3 {[%emt 0:01:21]} Nc2 {[%emt 0:00:14]} 30. Bf4 {[%emt 0:00:03]} Re8 {[%emt 0:02:01]} 31. Rb1 {[%emt 0:04:02]} Nd4 {[%emt 0:00:04]} 32. Rbb7 {[%emt 0:00:26]} Ne6 {[%emt 0:00:11]} 33. Be3 {[%emt 0:01:46]} h6 {[%emt 0:00:30]} 34. h4 {[%emt 0:00:18]} Bf8 {[%emt 0:00:35]} 35. Rb6 {[%emt 0:02:03]} Bg7 {[%emt 0:01:26]} 36. Bh3 {[%emt 0:01:28]} h5 {[%emt 0:00:21]} 37. Rbb7 {[%emt 0:01:54]} Ba6 {[%emt 0:00:12]} 38. Ra7 {[%emt 0:00:29]} Bb5 {[%emt 0:00:17]} 39. Rdb7 {[%emt 0:00:07]} Bd3 {[%emt 0:00:13]} 40. Bf1 {[%emt 0:00:42]} Bxf1 {[%emt 0:00:20]} 41. Kxf1 {[%emt 0:00:03]} Bf8 {[%emt 0:00:21]} 42. Ra6 {[%emt 0:00:36]} Bg7 {[%emt 0:00:18]} 43. Ke2 {[%emt 0:00:24]} Bf8 {[%emt 0:00:05]} 44. Kd2 {[%emt 0:00:49]} Bg7 {[%emt 0:00:10]} 45. Kc2 {[%emt 0:00:25]} Rc8+ {[%emt 0:01:14]} 46. Kb3 {[%emt 0:00:11]} Nf8 {[%emt 0:00:13]} 47. Raa7 {[%emt 0:01:29]} Ne6 {[%emt 0:00:15]} 48. Re7 {[%emt 0:02:02]} Rc6 {[%emt 0:00:23]} 49. Re8+ {[%emt 0:00:28]} Nf8 {[%emt 0:01:43]} 50. Kb4 {[%emt 0:00:03]} Rf6 {[%emt 0:01:32]} 51. Rxg7+ {[%emt 0:00:19]} Kxg7 {[%emt 0:00:05]} 52. Bd4 {[%emt 0:00:02]} Kf7 {[%emt 0:00:06]} 53. Rxf8+ {[%emt 0:00:04]} 1-0

[Event "9th RTU Open 2019"]
[Site "Riga"]
[Date "2019.08.11"]
[Round "9.17"]
[White "Nevednichy, Vladislav"]
[Black "Baskin, Robert"]
[Result "1/2-1/2"]
[ECO "B33"]
[WhiteElo "2531"]
[BlackElo "2398"]
[Annotator "ChessBase"]
[PlyCount "100"]
[EventDate "2019.08.05"]
[EventType "swiss"]
[EventCountry "LAT"]
[SourceTitle "playchess.com"]
[Source "ChessBase"]
[SourceQuality "1"]
[TimeControl "5400+30"]

1. e4 {[%emt 0:00:00]} c5 {[%emt 0:00:00]} 2. Nf3 {[%emt 0:01:28]} Nc6 {[%emt 0:00:05]} 3. d4 {[%emt 0:00:14]} cxd4 {[%emt 0:00:34]} 4. Nxd4 {[%emt 0:00:03]} Nf6 {[%emt 0:00:33]} 5. Nc3 {[%emt 0:00:06]} e5 {[%emt 0:00:13]} 6. Ndb5 {[%emt 0:00:15]} d6 {[%emt 0:00:07]} 7. Bg5 {[%emt 0:00:11]} a6 {[%emt 0:00:08]} 8. Na3 {[%emt 0:00:07]} b5 {[%emt 0:00:04]} 9. Nd5 {[%emt 0:00:08]} Be7 {[%emt 0:00:06]} 10. Bxf6 {[%emt 0:00:05]} Bxf6 {[%emt 0:00:05]} 11. c4 {[%emt 0:06:49]} b4 {[%emt 0:00:17]} 12. Nc2 {[%emt 0:00:04]} a5 {[%emt 0:00:11]} 13. h4 {[%emt 0:01:16]} O-O {[%emt 0:01:50]} 14. g3 {[%emt 0:00:37]} a4 {[%emt 0:00:46]} 15. Ndxb4 {[%emt 0:08:09]} Nxb4 {[%emt 0:02:49]} 16. Nxb4 {[%emt 0:00:17]} Qb6 {[%emt 0:04:29]} 17. a3 {[%emt 0:06:19]} Bd8 {[%emt 0:01:17]} 18. Bd3 {[%emt 0:14:56]} Be6 {[%emt 0:20:03]} 19. Qe2 {[%emt 0:11:08]} Qc5 {[%emt 0:02:30]} 20. O-O {[%emt 0:09:53]} Ba5 {[%emt 0:01:14]} 21. Nd5 {[%emt 0:00:06]} Rfb8 {[%emt 0:00:13]} 22. Rab1 {[%emt 0:07:18]} Rb3 {[%emt 0:01:18]} 23. Kg2 {[%emt 0:00:14]} Rab8 {[%emt 0:00:48]} 24. Rfd1 {[%emt 0:00:18]} Qa7 {[%emt 0:06:57]} 25. Ne3 {[%emt 0:06:49]} Qc5 {[%emt 0:13:15]} 26. h5 {[%emt 0:02:17]} Bd8 {[%emt 0:12:46]} 27. Nd5 {[%emt 0:02:08]} Bxd5 {[%emt 0:03:06]} 28. cxd5 {[%emt 0:01:42]} Bg5 {[%emt 0:00:31]} 29. Kf1 {[%emt 0:05:21]} h6 {[%emt 0:04:45]} 30. Qc2 {[%emt 0:03:29]} Qxc2 {[%emt 0:03:48]} 31. Bxc2 {[%emt 0:00:02]} Rxb2 {[%emt 0:00:04]} 32. Rxb2 {[%emt 0:00:09]} Rxb2 {[%emt 0:00:04]} 33. Bxa4 {[%emt 0:00:03]} Ra2 {[%emt 0:00:07]} 34. Rb1 {[%emt 0:03:39]} Rxa3 {[%emt 0:00:46]} 35. Rb8+ {[%emt 0:00:11]} Kh7 {[%emt 0:00:04]} 36. Be8 {[%emt 0:00:39]} Rf3 {[%emt 0:03:17]} 37. Rb7 {[%emt 0:02:20]} Kg8 {[%emt 0:00:31]} 38. Ke2 {[%emt 0:02:23]} Rf6 {[%emt 0:00:06]} 39. Bd7 {[%emt 0:00:26]} g6 {[%emt 0:00:48]} 40. hxg6 {[%emt 0:02:55]} Rxg6 {[%emt 0:00:11]} 41. Bg4 {[%emt 0:01:17]} Bc1 {[%emt 0:01:36]} 42. Bf5 {[%emt 0:01:28]} Rf6 {[%emt 0:00:21]} 43. Rb3 {[%emt 0:00:21]} h5 {[%emt 0:01:52]} 44. Rb1 {[%emt 0:00:33]} Bg5 {[%emt 0:00:09]} 45. Rf1 {[%emt 0:00:18]} Rh6 {[%emt 0:00:20]} 46. Kf3 {[%emt 0:02:38]} h4 {[%emt 0:01:29]} 47. Kg4 {[%emt 0:00:14]} Bf6 {[%emt 0:01:24]} 48. Rb1 {[%emt 0:01:01]} Kg7 {[%emt 0:01:21]} 49. Kf3 {[%emt 0:00:14]} hxg3 {[%emt 0:00:09]} 50. fxg3 {[%emt 0:00:02]} Be7 {[%emt 0:02:23]} 1/2-1/2

[Event "9th RTU Open 2019"]
[Site "Riga"]
[Date "2019.08.11"]
[Round "9.18"]
[White "Shailesh, Dravid"]
[Black "Salomon, Johan"]
[Result "0-1"]
[ECO "B70"]
[WhiteElo "2254"]
[BlackElo "2514"]
[Annotator "ChessBase"]
[PlyCount "86"]
[EventDate "2019.08.05"]
[EventType "swiss"]
[EventCountry "LAT"]
[SourceTitle "playchess.com"]
[Source "ChessBase"]
[SourceQuality "1"]
[TimeControl "5400+30"]

1. e4 {[%emt 0:00:00]} c5 {[%emt 0:00:00]} 2. Nf3 {[%emt 0:00:00]} d6 {[%emt 0:00:00]} 3. d4 {[%emt 0:00:00]} cxd4 {[%emt 0:00:00]} 4. Nxd4 {[%emt 0:00:00]} Nf6 {[%emt 0:00:00]} 5. Nc3 {[%emt 0:00:00]} a6 {[%emt 0:00:00]} 6. Qf3 {[%emt 0:00:31]} g6 {[%emt 0:00:00]} 7. h3 {[%emt 0:00:17]} Bg7 {[%emt 0:00:05]} 8. Be3 {[%emt 0:00:51]} O-O {[%emt 0:00:08]} 9. g4 {[%emt 0:01:38]} Nc6 {[%emt 0:04:31]} 10. O-O-O {[%emt 0:02:06]} Nd7 {[%emt 0:17:49]} 11. Qg3 {[%emt 0:03:51]} Na5 {[%emt 0:00:15]} 12. h4 {[%emt 0:07:55]} Ne5 {[%emt 0:00:09]} 13. f3 {[%emt 0:14:38]} Nec4 {[%emt 0:08:00]} 14. Bf2 {[%emt 0:01:17]} e5 {[%emt 0:06:51]} 15. Nb3 {[%emt 0:04:12]} Be6 {[%emt 0:00:13]} 16. g5 {[%emt 0:04:17]} h5 {[%emt 0:04:33]} 17. Nd5 {[%emt 0:03:33]} b5 {[%emt 0:08:24]} 18. Kb1 {[%emt 0:02:29]} Bxd5 {[%emt 0:01:12]} 19. Rxd5 {[%emt 0:01:21]} Nxb3 {[%emt 0:02:02]} 20. cxb3 {[%emt 0:04:02]} Nb6 {[%emt 0:00:06]} 21. Rd1 {[%emt 0:00:58]} Qc7 {[%emt 0:01:39]} 22. Bh3 {[%emt 0:01:30]} Rfd8 {[%emt 0:03:23]} 23. Rd2 {[%emt 0:01:51]} d5 {[%emt 0:06:05]} 24. Rc1 {[%emt 0:02:19]} Qb7 {[%emt 0:00:05]} 25. Bxb6 {[%emt 0:00:16]} Qxb6 {[%emt 0:00:01]} 26. exd5 {[%emt 0:00:49]} Qe3 {[%emt 0:00:14]} 27. Qg2 {[%emt 0:02:47]} Rd6 {[%emt 0:00:47]} 28. Bc8 {[%emt 0:05:17]} Ra7 {[%emt 0:03:52]} 29. Rc6 {[%emt 0:04:37]} Qe1+ {[%emt 0:03:50]} 30. Kc2 {[%emt 0:00:14]} Bf8 {[%emt 0:00:52]} 31. Re2 {[%emt 0:04:55]} Qa5 {[%emt 0:02:40]} 32. f4 {[%emt 0:05:44]} Rc7 {[%emt 0:02:47]} 33. Bh3 {[%emt 0:06:50]} Rcxc6+ {[%emt 0:03:28]} 34. dxc6 {[%emt 0:00:02]} Qc7 {[%emt 0:00:06]} 35. fxe5 {[%emt 0:00:08]} Rxc6+ {[%emt 0:00:08]} 36. Kd3 {[%emt 0:00:04]} Rc1 {[%emt 0:05:04]} 37. Ke4 {[%emt 0:00:58]} Bg7 {[%emt 0:05:03]} 38. Kf4 {[%emt 0:01:13]} Rc5 {[%emt 0:01:42]} 39. Qa8+ {[%emt 0:00:08]} Kh7 {[%emt 0:00:17]} 40. Qe8 {[%emt 0:00:15]} Rd5 {[%emt 0:01:46]} 41. Qa8 {[%emt 0:03:49]} Qc1+ {[%emt 0:03:54]} 42. Kf3 {[%emt 0:00:12]} Rd3+ {[%emt 0:00:30]} 43. Kg2 {[%emt 0:00:16]} Qf4 {[%emt 0:00:13]} 0-1